fUST/lending_fUST_20241124
["ID","MTS","AMOUNT","RATE_DAILY","PERIOD"]
[343204853,1732445442935,-151.036002,0.00025,7]
[343204855,1732445442945,-151.036002,0.00025,7]
[343204856,1732445442954,-151.036002,0.00025,7]
[343204857,1732445442964,-151.036002,0.00025,7]
[343204858,1732445442974,-151.036002,0.00025,7]
[343204859,1732445442984,-151.036002,0.00025,7]
[343204860,1732445442994,-142889.92081207,0.0002509,2]
[343204861,1732445443003,-189.59559,0.0002509,7]
[343204862,1732445443015,-189.59559,0.0002509,7]
[343204863,1732445443025,-280.792741,0.0002509,7]
[343204864,1732445443035,-280.792741,0.0002509,7]
[343204865,1732445443045,-151.0,0.0002509,7]
[343204866,1732445443055,-151.0,0.0002509,7]
[343204867,1732445443066,-151.0,0.0002509,7]
[343204868,1732445443080,-151.0,0.0002509,7]
[343204869,1732445443090,-359.309065,0.0002509,7]
[343204870,1732445443100,-359.309065,0.0002509,7]
[343204871,1732445443111,-358.260445,0.0002509,7]
[343204872,1732445443121,-358.260445,0.0002509,7]
[343204873,1732445443131,-151.0,0.0002509,7]
[343204874,1732445443140,-151.0,0.0002509,7]
[343204875,1732445443151,-151.0,0.0002509,7]
[343204876,1732445443163,-151.0,0.0002509,7]
[343204877,1732445443173,-510.711957,0.0002509,7]
[343204878,1732445443182,-510.711957,0.0002509,7]
[343204879,1732445443192,-153.771813,0.0002509,7]
[343204881,1732445443202,-153.771813,0.0002509,7]
[343204882,1732445443212,-1466.19587,0.0002509,7]
[343204883,1732445443222,-1466.19587,0.0002509,7]
[343204884,1732445443231,-151.0,0.0002509,7]
[343204885,1732445443241,-351.126925,0.0002509,7]
[343204886,1732445443250,-351.126925,0.0002509,7]
[343204887,1732445443259,-512.807986,0.0002509,7]
[343204888,1732445443270,-512.807986,0.0002509,7]
[343204889,1732445443279,-151.0,0.0002509,7]
[343204890,1732445443288,-151.0,0.0002509,7]
[343204891,1732445443298,-709.700696,0.0002509,7]
[343204892,1732445443307,-709.700696,0.0002509,7]
[343204893,1732445443316,-4359.427482,0.0002509,7]
[343204894,1732445443326,-4359.427482,0.0002509,7]
[343204895,1732445443335,-302.699761,0.0002509,7]
[343204896,1732445443344,-302.699761,0.0002509,7]
[343204897,1732445443354,-151.036002,0.0002509,7]
[343204898,1732445443364,-151.036002,0.0002509,7]
[343204899,1732445443373,-500.0,0.00025101,2]
[343204900,1732445443382,-635.56,0.00025101,2]
[343204901,1732445443392,-612.02,0.00025101,2]
[343204902,1732445443402,-572.3,0.00025101,2]
[343204903,1732445443411,-1904.52419395,0.00025124,2]
[343204904,1732445443420,-160.0,0.00025134,3]
[343204905,1732445443430,-1012.67,0.00025205,2]
[343204906,1732445443440,-770.98,0.00025205,2]
[343204907,1732445443449,-4817.38,0.00025205,2]
[343204908,1732445443458,-303.46729594,0.0002525,2]
[343204909,1732445443468,-303.46425692,0.0002525,2]
[343204910,1732445443478,-287.39388921,0.00025375,2]
[343204911,1732445443488,-635.56,0.00025375,2]
[343204912,1732445443497,-612.02,0.00025375,2]
[343204913,1732445443507,-572.3,0.00025375,2]
[343204914,1732445443520,-900.0,0.00025469,3]
[343204915,1732445443530,-1012.75583053,0.00025479,2]
[343204916,1732445443542,-771.12978991,0.00025479,2]
[343204917,1732445443551,-4817.60303845,0.00025479,2]
[343204918,1732445443560,-303.46729594,0.000255,2]
[343204919,1732445443570,-303.46425692,0.000255,2]
[343204920,1732445443579,-1000.0,0.00025521,2]
[343204921,1732445443590,-1000.0,0.00025521,2]
[343204922,1732445443600,-1904.52419395,0.00025521,2]
[343204923,1732445443609,-153.0,0.00025534,2]
[343204924,1732445443618,-168.3,0.00025576,5]
[343204925,1732445443627,-600.0,0.00025599,7]
[343204926,1732445443635,-635.56,0.00025649,2]
[343204927,1732445443645,-612.02,0.00025649,2]
[343204928,1732445443655,-572.3,0.00025649,2]
[343204929,1732445443665,-2500.0,0.00025655,3]
[343204930,1732445443674,-2500.0,0.00025664,3]
[343204931,1732445443683,-2500.0,0.00025664,3]
[343204932,1732445443691,-2500.0,0.00025673,3]
[343204933,1732445443701,-2500.0,0.00025673,3]
[343204934,1732445443711,-2308.95439853,0.00025715,2]
[343204935,1732445443721,-303.46729594,0.0002575,2]
[343204936,1732445443731,-303.46425692,0.0002575,2]
[343204937,1732445443740,-300.0,0.000258,2]
[343204938,1732445443750,-1008.69290443,0.00025818,2]
[343204939,1732445443762,-1904.52419395,0.00025918,2]
[343204940,1732445443772,-635.69788153,0.00025923,2]
[343204941,1732445443782,-612.08043674,0.00025923,2]
[343204942,1732445443791,-572.36386438,0.00025923,2]
[343204943,1732445443802,-193.0821909,0.00025945,2]
[343204944,1732445443811,-154.4165448,0.00025945,2]
[343204945,1732445443821,-304.1340194,0.00025945,2]
[343204946,1732445443831,-212.6978082,0.00025945,2]
[343204947,1732445443841,-304.6759866,0.00025945,2]
[343204948,1732445443851,-212.6978082,0.00025945,2]
[343204949,1732445443861,-212.6978082,0.00025945,2]
[343204950,1732445443871,-212.6978082,0.00025945,2]
[343204951,1732445443881,-9779.14472728,0.00026,2]
[343204952,1732445443975,-6899.38131393,0.00026,2]
[343204953,1732445443986,-977.83,0.00026,2]
[343204954,1732445443997,-2570.04858077,0.00026,2]
[343204955,1732445444008,-422.00011,0.00026,2]
[343204956,1732445444021,-515.25402673,0.00026,2]
[343204957,1732445444070,-526.77,0.00024554,2]
[343204958,1732445444083,-526.77,0.00024828,2]
[343204959,1732445444093,-526.77,0.00025102,2]
[343204960,1732445444103,-526.77,0.00025376,2]
[343204961,1732445444113,-526.77,0.0002565,2]
[343204962,1732445444123,-526.88860161,0.00025924,2]
[343204963,1732445444132,-31398.52480151,0.00026,2]
[343204964,1732445444142,-529.2893335,0.00026,2]
[343204965,1732445444152,-9617.10407296,0.00026,3]
[343204966,1732445444163,-28115.87343692,0.00026,30]
[343204967,1732445444175,-1504.90726,0.00026,30]
[343204968,1732445444187,-793.53748919,0.00026,30]
[343204969,1732445444211,-173.95539231,0.00021094,2]
[343204970,1732445444221,-5684.00460769,0.00026,30]
[343204971,1732445444232,-1161.64466889,0.00026,30]
[343204972,1732445444243,-10193.29341145,0.00026,30]
[343204973,1732445444254,-4269.87080956,0.00026,30]
[343204974,1732445444268,-28276.8683163,0.00026,30]
[343204975,1732445444278,-189.59559,0.00026,7]
[343204976,1732445444288,-189.59559,0.00026,7]
[343204977,1732445444298,-500.0,0.00026,20]
[343204978,1732445444308,-280.792741,0.00026,7]
[343204979,1732445444318,-29.8611443,0.00026,7]
[343205040,1732445445833,-315.915117,0.00024554,7]
[343205041,1732445445843,-315.915117,0.00025,7]
[343205042,1732445445853,-315.915117,0.00025,7]
[343205043,1732445445862,-315.915117,0.00025,7]
[343205044,1732445445870,-315.915117,0.0002509,7]
[343205045,1732445445880,-250.9315967,0.00026,7]
[343205046,1732445445889,-151.0,0.00026,7]
[343205047,1732445445898,-151.0,0.00026,7]
[343205048,1732445445907,-151.0,0.00026,7]
[343205049,1732445445917,-151.0,0.00026,7]
[343205050,1732445445927,-359.309065,0.00026,7]
[343205051,1732445445936,-359.309065,0.00026,7]
[343205052,1732445445946,-358.260445,0.00026,7]
[343205053,1732445445956,-358.260445,0.00026,7]
[343205054,1732445445966,-151.0,0.00026,7]
[343205055,1732445445975,-151.0,0.00026,7]
[343205056,1732445445985,-190.299705,0.00026,7]
[343205057,1732445445995,-151.0,0.00026,7]
[343205059,1732445446004,-510.711957,0.00026,7]
[343205060,1732445446014,-510.711957,0.00026,7]
[343205061,1732445446023,-153.771813,0.00026,7]
[343205062,1732445446032,-153.771813,0.00026,7]
[343205063,1732445446041,-1466.19587,0.00026,7]
[343205064,1732445446050,-151.0,0.00026,7]
[343205065,1732445446059,-351.126925,0.00026,7]
[343205066,1732445446070,-351.126925,0.00026,7]
[343205067,1732445446092,-303.46729594,0.00026,2]
[343205068,1732445446102,-512.807986,0.00026,7]
[343205069,1732445446112,-512.807986,0.00026,7]
[343205070,1732445446122,-151.0,0.00026,7]
[343205071,1732445446133,-151.0,0.00026,7]
[343205072,1732445446143,-709.700696,0.00026,7]
[343205073,1732445446153,-709.700696,0.00026,7]
[343205074,1732445446164,-4359.427482,0.00026,7]
[343205075,1732445446174,-3958.72469136,0.00026,7]
[343205076,1732445446187,-400.70279064,0.00026,7]
[343205077,1732445446197,-303.46425692,0.00026,2]
[343205078,1732445446206,-302.699761,0.00026,7]
[343205079,1732445446216,-302.699761,0.00026,7]
[343205080,1732445446226,-151.036002,0.00026,7]
[343205081,1732445446237,-151.036002,0.00026,7]
[343205082,1732445446247,-315.915117,0.00026,7]
[343205083,1732445446257,-160.0,0.00026018,4]
[343205084,1732445446268,-455.2009439,0.0002625,4]
[343205085,1732445446277,-455.19638538,0.0002625,4]
[343205086,1732445446286,-168.3,0.00026267,6]
[343205087,1732445446295,-167.56846016,0.00026315,2]
[343205097,1732446089358,162.465623,0.00013973,2]
[343205098,1732446136973,1578.5862428,0.00017882,2]
[343205099,1732446245336,235.7522136,0.00018,2]
[343205100,1732446396197,-235.7522136,0.00018031,2]
[343205116,1732446573223,3726.8681149,0.00017937,2]
[343205119,1732446598318,219.229494,0.00017857,2]
[343205214,1732446632654,-542.2426714,0.00018031,2]
[343205215,1732446632664,-1901.52154256,0.00018082,2]
[343205216,1732446632677,-417.99998,0.00018082,2]
[343205217,1732446632689,-1801.15292294,0.00018082,2]
[343205218,1732446632700,-195.02434225,0.00018126,2]
[343205219,1732446632710,-300.0,0.00018308,2]
[343205220,1732446632720,-300.0,0.00018308,2]
[343205221,1732446632731,-24900.0,0.00018309,2]
[343205222,1732446632741,-777.994885,0.00018716,2]
[343205223,1732446632750,-236.14,0.00018912,2]
[343205224,1732446632760,-622.7085008,0.00018938,2]
[343205225,1732446632771,-969.3568594,0.00019154,2]
[343205226,1732446632786,-500.0,0.00019178,2]
[343205227,1732446632796,-500.0,0.00019178,2]
[343205228,1732446632810,-500.0,0.00019178,2]
[343205229,1732446632821,-274.89412587,0.00019178,2]
[343205230,1732446632833,-315.96685396,0.00019178,2]
[343205231,1732446632842,-191.46379986,0.00019178,2]
[343205232,1732446632852,-519.38,0.00019178,2]
[343205233,1732446632861,-164.891211,0.00019178,2]
[343205234,1732446632871,-777.994885,0.00019401,2]
[343205235,1732446632881,-500.0,0.00019452,2]
[343205236,1732446632891,-519.38,0.00019452,2]
[343205237,1732446632900,-150.214685,0.000195,2]
[343205238,1732446632911,-180.19090107,0.00019621,2]
[343205239,1732446632921,-1630.63725101,0.00019622,2]
[343205240,1732446632930,-501.47796907,0.00019622,2]
[343205241,1732446632940,-598.93646555,0.00019622,2]
[343205242,1732446632949,-474.8386647,0.00019622,2]
[343205243,1732446632959,-501.34147829,0.00019622,2]
[343205244,1732446632970,-536.46439139,0.00019622,2]
[343205245,1732446632980,-500.63305977,0.00019622,2]
[343205246,1732446632990,-500.0,0.00019622,2]
[343205247,1732446633000,-500.0,0.00019726,2]
[343205248,1732446633010,-519.38,0.00019726,2]
[343205249,1732446633020,-1347.88914562,0.00019857,2]
[343205250,1732446633035,-15464.47218569,0.00019857,2]
[343205251,1732446633045,-420.0,0.0001997,2]
[343205252,1732446633057,-151.89163046,0.0002,2]
[343205253,1732446633068,-6729.61966769,0.0002,2]
[343205254,1732446633114,-42000.089831,0.0002,2]
[343205255,1732446633128,-12306.63080131,0.0002,2]
[343205256,1732446633139,-519.38,0.0002,2]
[343205257,1732446633149,-420.0,0.00020139,2]
[343205258,1732446633160,-622.70850078,0.0002027,2]
[343205259,1732446633170,-519.38,0.00020273,2]
[343205260,1732446633181,-176.486,0.00020289,2]
[343205261,1732446633192,-250.0,0.00020412,2]
[343205262,1732446633202,-519.38,0.00020547,2]
[343205263,1732446633212,-432.05453644,0.00020685,2]
[343205264,1732446633222,-244.66626163,0.00020685,2]
[343205265,1732446633232,-275.24487338,0.00020685,2]
[343205266,1732446633243,-284.55995874,0.00020685,2]
[343205267,1732446633253,-16930.39845252,0.00020686,2]
[343205268,1732446633266,-233069.60154748,0.00020686,2]
[343205269,1732446633277,-519.38,0.00020821,2]
[343205270,1732446633292,-3000.0,0.00021,2]
[343205271,1732446633303,-3000.0,0.0002101,2]
[343205272,1732446633314,-3000.0,0.0002102,2]
[343205273,1732446633324,-3000.0,0.0002103,2]
[343205274,1732446633334,-4301.780496,0.0002104,2]
[343205275,1732446633345,-519.38,0.00021095,2]
[343205276,1732446633356,-519.38,0.00021369,2]
[343205277,1732446633366,-622.70850078,0.00021602,2]
[343205278,1732446633377,-519.38,0.00021643,2]
[343205279,1732446633388,-519.38,0.00021917,2]
[343205280,1732446633398,-519.38,0.00022191,2]
[343205281,1732446633407,-519.38,0.00022465,2]
[343205282,1732446633418,-375.873,0.00022635,2]
[343205283,1732446633428,-519.38,0.00022739,2]
[343205284,1732446633438,-622.70850078,0.00022934,2]
[343205285,1732446633449,-320.0,0.00023,2]
[343205286,1732446633463,-519.38,0.00023013,2]
[343205287,1732446633473,-519.38,0.00023287,2]
[343205288,1732446633484,-320.0,0.00023288,2]
[343205289,1732446633496,-500.0,0.00023407,2]
[343205290,1732446633508,-519.38,0.00023561,2]
[343205291,1732446633518,-320.0,0.00023562,2]
[343205292,1732446633529,-666.0,0.00023633,2]
[343205293,1732446633544,-519.38,0.00023835,2]
[343205294,1732446633554,-320.0,0.00023836,2]
[343205295,1732446633565,-519.38,0.00024109,2]
[343205296,1732446633575,-320.0,0.0002411,2]
[343205297,1732446633586,-320.0,0.00024164,2]
[343205298,1732446633596,-622.70850078,0.00024267,2]
[343205299,1732446633607,-519.38,0.00024383,2]
[343205300,1732446633620,-500.0,0.00024503,2]
[343205301,1732446633630,-519.38,0.00024657,2]
[343205302,1732446633642,-195.4556913,0.00024658,2]
[343205303,1732446633654,-519.38,0.00024931,2]
[343205304,1732446633664,-300.0,0.00025,2]
[343205305,1732446633674,-388.0,0.00025,2]
[343205306,1732446633685,-303.40652712,0.00025,2]
[343205307,1732446633695,-303.29113341,0.00025,2]
[343205308,1732446633706,-500.0,0.00025,17]
[343205309,1732446633717,-519.38,0.00025205,2]
[343205310,1732446633727,-303.40652712,0.0002525,2]
[343205311,1732446633738,-303.29113341,0.0002525,2]
[343205312,1732446633749,-320.0,0.00025373,2]
[343205313,1732446633760,-322.0,0.00025373,2]
[343205314,1732446633769,-519.41935217,0.00025479,2]
[343205315,1732446633783,-303.40652712,0.000255,2]
[343205316,1732446633795,-303.29113341,0.000255,2]
[343205317,1732446633805,-622.70850078,0.00025599,2]
[343205318,1732446633816,-500.0,0.00025599,7]
[343205319,1732446633826,-9704.54511245,0.00025644,2]
[343205320,1732446633837,-1114.95086067,0.000257,3]
[343205321,1732446633848,-303.40652712,0.0002575,2]
[343205322,1732446633859,-303.29113341,0.0002575,2]
[343205323,1732446633868,-300.0,0.000258,2]
[343205324,1732446633880,-9704.54511245,0.00025859,2]
[343205325,1732446633891,-382.06162813,0.0002586,2]
[343205326,1732446633901,-303.40652712,0.00026,2]
[343205327,1732446633912,-303.29113341,0.00026,2]
[343205328,1732446633923,-710.097889,0.00026,20]
[343205329,1732446633934,-9704.54511246,0.00026029,2]
[343205330,1732446633945,-455.10979069,0.0002625,4]
[343205331,1732446633956,-304.32987445,0.0002625,4]
[343205332,1732446633967,-660.0,0.00026384,2]
[343205333,1732446633977,-320.0,0.00026388,2]
[343205334,1732446633988,-4293.19558206,0.000264,30]
[343205335,1732446634000,-500.0,0.00026421,7]
[343205336,1732446634011,-7845.71953801,0.00026442,8]
[343205337,1732446634023,-5000.0,0.00026442,6]
[343205338,1732446634038,-5000.0,0.00026442,11]
[343205339,1732446634049,-5000.0,0.00026442,8]
[343205340,1732446634059,-7458.94652043,0.0002649,2]
[343205341,1732446634070,-174.06026218,0.000265,4]
[343205342,1732446634081,-1500.0,0.00026522,2]
[343205343,1732446634092,-320.0,0.00026581,2]
[343205344,1732446634102,-299.52,0.00026716,7]
[343205345,1732446634112,-300.0,0.000268,2]
[343205346,1732446634123,-160.0,0.00026903,5]
[343205347,1732446634133,-622.70850078,0.00026931,2]
[343205348,1732446634144,-1435.46,0.00027,2]
[343205349,1732446634154,-151.0,0.00027077,7]
[343205350,1732446634165,-500.0,0.00027243,7]
[343205351,1732446634175,-299.48,0.00027264,7]
[343205352,1732446634186,-299.48,0.00027264,7]
[343205353,1732446634195,-2000.0,0.000273,2]
[343205354,1732446634205,-445.92,0.00027381,2]
[343205355,1732446634216,-211.8123826,0.00027397,2]
[343205356,1732446634226,-500.0,0.00027397,2]
[343205357,1732446634236,-500.0,0.00027397,2]
[343205358,1732446634246,-500.0,0.00027397,2]
[343205359,1732446634258,-513.87191259,0.00027397,2]
[343205360,1732446634268,-500.0,0.00027397,7]
[343205361,1732446634278,-500.0,0.00027397,2]
[343205362,1732446634296,-320.0,0.00027402,2]
[343205363,1732446634306,-44377.95983293,0.000275,2]
[343205364,1732446634317,-161.36,0.000276,2]
[343205365,1732446634328,-500.0,0.00027671,7]
[343205366,1732446634339,-151.0,0.00027708,7]
[343205367,1732446634349,-16140.6539,0.0002772,2]
[343205368,1732446634361,-160.0,0.00027787,6]
[343205369,1732446634372,-263.60119022,0.00027787,5]
[343205370,1732446634382,-160.95809847,0.00027787,5]
[343205371,1732446634392,-320.0,0.00027789,2]
[343205372,1732446634403,-300.0,0.000278,2]
[343205373,1732446634414,-19333.68,0.000278,2]
[343205374,1732446634425,-1697.56801984,0.0002782,5]
[343205375,1732446634436,-1125.95767039,0.000279,2]
[343205376,1732446634447,-1125.95767035,0.0002794,2]
[343205377,1732446634463,-500.0,0.00027945,7]
[343205378,1732446634474,-500.0,0.00027973,5]
[343205379,1732446634485,-1125.95767035,0.00027981,2]
[343205380,1732446634498,-32005.46820128,0.0002799,2]
[343205381,1732446634510,-1168.59295971,0.0002799,7]
[343205382,1732446634521,-5882.72930858,0.00027995,7]
[343205383,1732446634536,-15953.929889,0.00028,21]
[343205384,1732446634546,-500.72,0.00028,4]
[343205385,1732446634557,-386730.59611598,0.00028,30]
[343205386,1732446634568,-52736.31259138,0.00028,7]
[343205387,1732446634580,-2377.49674251,0.00028,2]
[343205388,1732446634591,-157.0,0.00028,2]
[343205389,1732446634601,-1129.87,0.00028,2]
[343205390,1732446634612,-798.34624321,0.00028,30]
[343205391,1732446634622,-5021.3888828,0.00028,2]
[343205392,1732446634633,-1130.25841238,0.00028,31]
[343205393,1732446634643,-1125.95767035,0.00028021,2]
[343205394,1732446634653,-1125.95767035,0.00028061,2]
[343205395,1732446634663,-154.82,0.000281,31]
[343205396,1732446634674,-154.82,0.000281,31]
[343205397,1732446634684,-154.82,0.000281,31]
[343205398,1732446634695,-154.82,0.000281,31]
[343205399,1732446634705,-154.82,0.000281,31]
[343205400,1732446634715,-154.82,0.000281,31]
[343205401,1732446634725,-154.82,0.000281,31]
[343205402,1732446634736,-1125.95767035,0.00028102,2]
[343205403,1732446634745,-1125.95767035,0.00028142,2]
[343205404,1732446634755,-1125.95767035,0.00028182,2]
[343205405,1732446634766,-20000.0,0.000282,8]
[343205406,1732446634776,-500.0,0.00028219,7]
[343205407,1732446634806,-1125.95767035,0.00028223,2]
[343205408,1732446634816,-1125.95767035,0.00028263,2]
[343205409,1732446634828,-622.70850078,0.00028263,2]
[343205410,1732446634839,-151.0,0.00028339,7]
[343205411,1732446634849,-151.0,0.00028359,7]
[343205412,1732446634859,-151.0,0.00028359,7]
[343205413,1732446634870,-151.0,0.00028359,7]
[343205414,1732446634880,-151.210504,0.00028359,7]
[343205415,1732446634890,-151.0,0.00028359,7]
[343205416,1732446634900,-151.0,0.00028359,7]
[343205417,1732446634911,-151.0,0.00028359,7]
[343205418,1732446634920,-151.0,0.00028359,7]
[343205419,1732446634931,-151.0,0.00028359,7]
[343205420,1732446634941,-151.0,0.00028359,7]
[343205421,1732446634952,-151.0,0.00028359,7]
[343205422,1732446634962,-151.0,0.00028359,7]
[343205423,1732446634973,-151.288017,0.00028359,7]
[343205424,1732446634983,-276.190362,0.00028362,7]
[343205425,1732446634994,-276.190362,0.00028362,7]
[343205426,1732446635005,-276.190362,0.00028362,7]
[343205427,1732446635014,-276.190362,0.00028362,7]
[343205428,1732446635025,-276.190362,0.00028362,7]
[343205429,1732446635038,-276.190362,0.00028362,7]
[343205430,1732446635048,-151.0,0.00028362,7]
[343205431,1732446635058,-151.0,0.00028362,7]
[343205432,1732446635068,-276.190354,0.00028362,7]
[343205433,1732446635078,-151.0,0.00028362,7]
[343205434,1732446635089,-151.0,0.00028362,7]
[343205435,1732446635099,-151.0,0.00028362,7]
[343205436,1732446635108,-244.763222,0.00028362,7]
[343205437,1732446635227,-151.0,0.00028362,7]
[343205438,1732446635238,-151.0,0.00028362,7]
[343205439,1732446635248,-151.0,0.00028362,7]
[343205440,1732446635258,-151.0,0.00028362,7]
[343205441,1732446635269,-151.0,0.00028362,7]
[343205442,1732446635279,-151.0,0.00028362,7]
[343205443,1732446635292,-151.0,0.00028362,7]
[343205444,1732446635302,-151.0,0.00028362,7]
[343205445,1732446635311,-151.0,0.00028362,7]
[343205446,1732446635321,-151.0,0.00028362,7]
[343205447,1732446635331,-151.0,0.00028362,7]
[343205448,1732446635342,-151.0,0.00028362,7]
[343205449,1732446635351,-151.0,0.00028362,7]
[343205450,1732446635361,-151.0,0.00028362,7]
[343205451,1732446635372,-151.0,0.00028362,7]
[343205452,1732446635381,-151.0,0.00028362,7]
[343205453,1732446635392,-151.0,0.00028362,7]
[343205454,1732446635403,-151.0,0.00028362,7]
[343205455,1732446635413,-156.472511,0.00028362,7]
[343205456,1732446635424,-151.0,0.00028362,7]
[343205457,1732446635434,-151.0,0.00028362,7]
[343205458,1732446635447,-151.0,0.00028362,7]
[343205459,1732446635468,-151.0,0.00028362,7]
[343205460,1732446635489,-151.0,0.00028362,7]
[343205461,1732446635500,-151.0,0.00028362,7]
[343205462,1732446635510,-162.27067,0.00028362,7]
[343205463,1732446635519,-151.0,0.00028362,7]
[343205464,1732446635529,-151.0,0.00028362,7]
[343205465,1732446635542,-151.0,0.00028362,7]
[343205466,1732446635552,-151.0,0.00028362,7]
[343205467,1732446635561,-151.0,0.00028362,7]
[343205468,1732446635571,-151.0,0.00028362,7]
[343205469,1732446635580,-151.0,0.00028362,7]
[343205470,1732446635590,-151.0,0.00028362,7]
[343205471,1732446635600,-151.0,0.00028362,7]
[343205472,1732446635611,-151.0,0.00028362,7]
[343205473,1732446635620,-151.0,0.00028362,7]
[343205474,1732446635630,-151.0,0.00028362,7]
[343205475,1732446635640,-151.0,0.00028362,7]
[343205476,1732446635650,-151.0,0.00028362,7]
[343205477,1732446635660,-151.0,0.00028362,7]
[343205478,1732446635669,-151.0,0.00028362,7]
[343205479,1732446635679,-151.0,0.00028362,7]
[343205480,1732446635689,-151.0,0.00028362,7]
[343205481,1732446635699,-151.0,0.00028362,7]
[343205482,1732446635709,-151.0,0.00028362,7]
[343205483,1732446635719,-151.0,0.00028362,7]
[343205484,1732446635728,-151.0,0.00028362,7]
[343205485,1732446635738,-151.0,0.00028362,7]
[343205486,1732446635748,-151.0,0.00028362,7]
[343205487,1732446635758,-151.0,0.00028362,7]
[343205488,1732446635768,-151.0,0.00028362,7]
[343205489,1732446635777,-151.0,0.00028362,7]
[343205490,1732446635790,-151.0,0.00028362,7]
[343205491,1732446635800,-151.0,0.00028362,7]
[343205492,1732446635810,-151.0,0.00028362,7]
[343205493,1732446635820,-299.083565,0.00028362,7]
[343205494,1732446635829,-283.341925,0.00028362,7]
[343205495,1732446635839,-228.80975,0.00028362,7]
[343205496,1732446635849,-151.0,0.00028362,7]
[343205497,1732446635858,-742.198625,0.00028362,7]
[343205498,1732446635869,-151.0,0.00028362,7]
[343205499,1732446635878,-659.788141,0.00028362,7]
[343205500,1732446635888,-659.788141,0.00028362,7]
[343205501,1732446635898,-586.622153,0.00028362,7]
[343205502,1732446635908,-151.0,0.00028362,7]
[343205503,1732446635918,-586.622153,0.00028362,7]
[343205504,1732446635928,-151.0,0.00028362,7]
[343205505,1732446635937,-1630.63725101,0.00028362,2]
[343205506,1732446635946,-1630.63725101,0.00028362,2]
[343205507,1732446635956,-2376232.25993908,0.00028363,10]
[343205508,1732446636012,-1320924.70688484,0.00028363,10]
[343205524,1732446638526,-500.0,0.00019999,2]
[343205525,1732446638539,-500.0,0.00019999,2]
[343205526,1732446638549,-167.01302315,0.00019999,2]
[343205527,1732446638559,-558.6361555,0.00019999,2]
[343205528,1732446638568,-500.0,0.00019999,2]
[343205529,1732446638578,-515.76834972,0.00027397,2]
[343205530,1732446638588,-571.19906563,0.00027397,2]
[343205531,1732446638597,-5704.2370514,0.00028363,10]
[343205556,1732446640194,-5156.01,0.00028353,10]
[343205557,1732446640204,-190268.02467746,0.00028363,10]
[343205632,1732446646261,-1947.76,0.00028363,10]
[343205633,1732446646338,-9236.06845982,0.00028363,10]
[343205634,1732446646351,-31528.5024811,0.00028363,10]
[343205635,1732446646363,-3770.37579737,0.00028363,10]
[343205636,1732446646376,-282.23019186,0.00028363,10]
[343205637,1732446646452,-2018.92978213,0.00028363,10]
[343205656,1732446799170,170.806595,0.00013973,2]
[343205659,1732447487215,170.806595,0.00013973,2]
[343205698,1732447835563,-312.70885456,0.00021229,2]
[343205699,1732447835573,-300.0,0.00021329,2]
[343205700,1732447835583,-300.0,0.00021329,2]
[343205701,1732447835593,-530.0,0.0002133,2]
[343205702,1732447835603,-1108.0,0.0002133,2]
[343205703,1732447835613,-2381.0,0.0002133,2]
[343205704,1732447835623,-455.788085,0.00024138,2]
[343205705,1732447835633,-9840.7896281,0.00024138,2]
[343205706,1732447835642,-250.0,0.00024183,2]